[Event "Charlotte Summer IM B 2022"]
[Site "Charlotte"]
[Date "2022.07.25"]
[Round "1.1"]
[White "Homa, Seth"]
[Black "Zaloznyy, Mike"]
[Result "1-0"]
[ECO "C41"]
[WhiteElo "2237"]
[BlackElo "2171"]
[Annotator "TA"]
[PlyCount "107"]
[EventDate "2022.07.24"]
[EventType "tourn"]
[EventCountry "USA"]
[SourceTitle "playchess.com"]
[Source "ChessBase"]
[SourceQuality "1"]
[TimeControl "5400+30"]

{[%evp 14,107,26,25,35,39,43,32,35,36,40,29,29,33,28,37,41,40,43,0,0,0,0,0,0,0,0,0,-10,-10,0,-18,-16,-18,20,0,0,8,56,59,33,42,56,-14,0,12,7,-34,15,22,29,-97,-104,-83,389,419,868,776,960,952,959,632,627,609,814,0,0,0,0,0,0,-64,0,0,50,50,50,50,56,0,5,0,1,0,0,0,0,0,8,8,134,127,29993,0,6,6]} 1. e4 {[%emt 0:00:03]} d6 {[%emt 0:14:04]} 2. d4 {[%emt 0:00:17]} Nf6 {[%emt 0:00:24]} 3. Nc3 {[%emt 0:00:15]} e5 {[%emt 0:00:12]} 4. Nf3 {[%emt 0:00:15]} Nbd7 {[%emt 0:00:23]} 5. Bc4 {[%emt 0:01:49]} Be7 {[%emt 0:00:22]} 6. O-O {[%emt 0:00:11]} c6 {[%emt 0:01:03]} 7. a4 {[%emt 0:00:24]} O-O {[%emt 0:01:22]} 8. Re1 {[%emt 0:00:32]} exd4 {[%emt 0:00:25] C41: Philidor Defence.} 9. Nxd4 {[%emt 0:00:31]} Ne5 {[%emt 0:01:09]} 10. Ba2 {[%emt 0:01:23]} Re8 {[%emt 0:01:05] White is slightly better.} 11. h3 {[%emt 0:00:43]} Bf8 {[%emt 1:15:31] 11...Ng6 is becoming the main line.} 12. Be3 {[%emt 0:25:15]} Ng6 {[%emt 0:00:00] [#]} 13. Qd3 $146 {[%emt 0:08:29]} ({Predecessor:} 13. Qf3 Qa5 14. Qg3 Nh5 15. Qh2 Nf6 16. Nb3 Qc7 17. Bg5 Be7 18. Rad1 Ne5 19. Nd4 {1-0 (31) Markantonaki,H (2160)-Makka,E (2119) Athens 2014}) 13... Be6 {[%emt 0:00:00]} 14. Nxe6 {[%emt 0:01:21]} fxe6 {[%emt 0:00:00]} 15. f4 {[%emt 0:00:11]} Kh8 {[%emt 0:00:00]} 16. a5 {[%emt 0:13:59]} d5 {[%emt 0:00:00]} 17. e5 {[%emt 0:01:58]} Nd7 {[%emt 0:00:00]} 18. Rf1 {[%emt 0:01:14]} a6 {[%emt 0:00:00]} 19. Bb1 {[%emt 0:01:11]} Bb4 {[%emt 0:00:00][%cal Bf8b4,Bb4a5,Ba5b6][%mdl 32]} 20. Ne2 {[%emt 0:00:28]} Bxa5 {[%emt 0:00:00]} 21. c3 {[%emt 0:00:15]} Bb6 {[%emt 0:00:00]} 22. Kh1 {[%emt 0:01:53]} Rf8 {[%emt 0:00:00] White must now prevent ...Ndxe5.} 23. Bc2 {[%emt 0:00:29]} Qh4 {[%emt 0:00:00]} 24. Bxb6 {[%emt 0:02:25]} Nxb6 {[%emt 0:00:00]} 25. Qd4 {[%emt 0:00:07]} Nc8 {[%emt 0:00:00]} (25... Qd8 $11 {feels stronger.}) 26. Bxg6 $14 {[%emt 0:00:35]} hxg6 {[%emt 0:00:00]} 27. Qb4 {[%emt 0:00:16]} Qe7 {[%emt 0:00:00]} 28. Qb3 {[%emt 0:00:36]} ({White should play} 28. Qxe7 $1 $14 Nxe7 29. Nd4) 28... c5 {[%emt 0:00:00]} 29. c4 {[%emt 0:00:23]} dxc4 {[%emt 0:00:00]} 30. Qg3 {[%emt 0:00:57]} Qf7 {[%emt 0:00:00]} (30... Qe8 $15 {deserves consideration.}) 31. f5 $11 {[%emt 0:12:36]} gxf5 {[%emt 0:00:00]} 32. Rad1 {[%emt 0:00:11]} (32. Rf4 $1 $11) 32... Nb6 $1 $17 {[%emt 0:00:00]} 33. Nf4 {[%emt 0:00:55] [#]} Kg8 $2 {[%emt 0:00:00][%mdl 8192]} (33... Nd5 $1 $17 {[%cal Rd5f4] Hoping for ...Nxf4.} 34. Rxd5 exd5) 34. Rd6 $1 $18 {[%emt 0:01:52][%csl LRb6,LRe6]} Nc8 {[%emt 0:00:00]} (34... Nd5 $142 35. Nxe6 Nc7 36. Nxg7 (36. Nxc5 f4 $14) 36... Qxg7) 35. Rxe6 {[%emt 0:00:39] aiming for Rh6.} Ne7 {[%emt 0:06:22]} 36. Rf6 {[%emt 0:10:06]} Qe8 {[%emt 0:00:03]} 37. Ne6 {[%emt 0:00:13][%csl Ge6][%cal Rg3g7]} Rf7 {[%emt 0:00:04]} 38. Rf4 {[%emt 0:02:11] Intending Rh6 and mate.} Nd5 {[%emt 0:00:39]} 39. Rxf7 {[%emt 0:03:00]} (39. Rg6 $18 {[%cal Rg6g7]} Qe7 {[#]} 40. Rxf5 $3 {[%mdl 512]}) 39... Qxf7 $11 {[%emt 0:00:16]} 40. Ng5 {[%emt 0:00:09]} Qg6 {[%emt 0:00:57]} 41. Rxc4 {[%emt 0:06:10]} f4 {[%emt 0:00:07]} 42. Qh4 {[%emt 0:00:38]} (42. Qb3 $11) 42... Rf8 {[%emt 0:02:22]} ({Better is} 42... b6 $15) 43. Rxc5 {[%emt 0:02:05]} Qb1+ {[%emt 0:00:01]} (43... Ne3 $11 44. Rc1 Qh6 45. Qxh6 gxh6) 44. Kh2 $14 {[%emt 0:00:01]} Ne3 {[%emt 0:05:39] [#] ( -> ...Nf1+)} 45. Rc1 {[%emt 0:00:12]} Qf5 {[%emt 0:00:00]} 46. Nf3 {[%emt 0:01:26]} ({Don't play} 46. Rc7 Nf1+ 47. Kg1 Nd2 $11) (46. Kg1 $14) 46... Qg6 {[%emt 0:00:00][%csl Ge3][%cal Rg6g2]} 47. Qg5 $36 {[%emt 0:00:43][%mdl 2048] White has the initiative.} Qb6 {[%emt 0:00:00]} 48. h4 {[%emt 0:00:59]} Rf5 {[%emt 0:00:00]} 49. Rc8+ {[%emt 0:00:33]} Kh7 {[%emt 0:00:00]} 50. Qd8 {[%emt 0:01:06]} Ng4+ {[%emt 0:03:00]} 51. Kh1 {[%emt 0:00:07]} Nf2+ {[%emt 0:00:30]} (51... Qxd8 $11 52. Rxd8 Kg6) 52. Kg1 $16 {[%emt 0:00:24]} Ng4+ $2 {[%emt 0:00:30][%mdl 8192]} (52... Qxd8 $16 53. Rxd8 Ng4) 53. Kh1 $2 {[%emt 0:02:19]} (53. Qxb6 {mates} Nh6 54. Qe6 b5 55. Ng5+ Rxg5 56. hxg5 Ng8 57. Qf5+ g6 58. Qf7+ Kh8 59. Rxg8#) 53... Qxd8 {[%emt 0:00:30]} 54. Rxd8 {[%mdl 32768] Weighted Error Value: White=0.42/Black=0.48. Loss on time!?} 1-0

[Event "Charlotte Summer IM B 2022"]
[Site "Charlotte"]
[Date "2022.07.25"]
[Round "1.2"]
[White "Mishra, Prateek"]
[Black "Eckert, Doug"]
[Result "0-1"]
[ECO "C78"]
[WhiteElo "2204"]
[BlackElo "2177"]
[Annotator "TA"]
[PlyCount "94"]
[EventDate "2022.07.24"]
[EventType "tourn"]
[EventCountry "USA"]
[SourceTitle "playchess.com"]
[Source "ChessBase"]
[SourceQuality "1"]
[TimeControl "5400+30"]

{[%evp 17,94,41,47,0,0,0,12,16,52,15,30,15,30,-26,-26,-28,-35,-25,19,21,11,20,13,10,18,15,22,6,7,7,7,7,10,1,91,22,24,17,26,-8,0,-5,-9,-39,-34,-44,-51,-41,-12,-17,0,0,0,-52,-45,-34,-30,-25,-22,-224,-223,-215,-210,-221,-222,-459,-373,-373,-373,-946,-944,-935,-931,-920,-906,-1064,-987,-923,-870]} 1. e4 {[%emt 0:00:02]} e5 {[%emt 0:01:01]} 2. Nf3 {[%emt 0:00:06]} Nc6 {[%emt 0:00:08]} 3. Bb5 {[%emt 0:00:05]} a6 {[%emt 0:00:09]} 4. Ba4 {[%emt 0:00:04]} Nf6 {[%emt 1:31:12]} 5. O-O {[%emt 0:00:06]} b5 {[%emt 0:00:00]} 6. Bb3 {[%emt 0:00:06]} Bc5 {[%emt 0:00:00]} 7. a4 {[%emt 0:00:05]} Rb8 {[%emt 0:00:00]} 8. c3 {[%emt 0:00:08]} d6 {[%emt 0:00:00]} 9. d4 {[%emt 0:00:07]} Bb6 {[%emt 0:00:00]} 10. a5 {[%emt 0:00:04] C78: Ruy Lopez: Archangelsk and Möller Defences.} Ba7 {[%emt 0:00:00]} (10... Nxa5 11. Rxa5 Bxa5 12. dxe5) (10... Bxa5 $2 11. dxe5 (11. d5 Ne7 $18) 11... dxe5 12. Qxd8+ Kxd8 13. Bd5 (13. Bxf7 Bb6 $16) 13... Nxd5 14. exd5 $18) 11. h3 {[%emt 0:00:16]} O-O {[%emt 0:00:00]} 12. Be3 {[%emt 0:00:06] The position is equal.} Re8 {[%emt 0:00:00]} 13. Nbd2 {[%emt 0:02:21]} Ra8 {[%emt 0:00:00]} 14. Re1 {[%emt 0:00:18]} Bb7 {[%emt 0:00:00] [#]} 15. Nf1 $146 {[%emt 0:03:59]} (15. Ng5 $142 Rf8 16. Ndf3) ({Predecessor:} 15. d5 Ne7 16. Bxa7 Rxa7 17. c4 c6 18. Bc2 h6 19. b3 cxd5 20. cxd5 Bc8 21. b4 {0-1 (45) Sychev,K (2572)-Grigoriants,S (2546) Chess.com INT 2020}) 15... exd4 $11 {[%emt 0:00:00]} ({But not} 15... Nxe4 16. d5 $16) 16. cxd4 {[%emt 0:00:08]} Nxe4 {[%emt 0:00:00]} 17. Bd5 {[%emt 0:41:12][%cal Oe3g5]} Nf6 {[%emt 0:00:00]} (17... Qd7 $5 {[%cal Re4f6]}) 18. Bg5 {[%emt 0:01:09]} Rxe1 {[%emt 0:00:00]} 19. Qxe1 {[%emt 0:08:43]} Qe8 {[%emt 0:00:00]} 20. Bxf6 {[%emt 0:03:15][%cal Oe1d2]} Qxe1 {[%emt 0:00:00]} 21. Rxe1 {[%emt 0:00:29] Threatens to win with Bh4.} gxf6 {[%emt 0:00:00]} 22. Rc1 {[%emt 0:01:09][%cal Be1c1,Bc1c7,Bc7d7,Bd7d6,Bd6c6][%mdl 32]} Nxa5 {[%emt 0:00:00]} 23. Bxb7 {[%emt 0:00:11]} Nxb7 {[%emt 0:00:00]} 24. Rxc7 {[%emt 0:00:04]} Na5 {[%emt 0:00:00]} 25. Rd7 {[%emt 0:03:24]} Nc4 {[%emt 0:00:00]} (25... Bb6 $11 {remains equal.}) 26. b3 {[%emt 0:00:52]} (26. Ne3 $1 $16) 26... Nb6 {[%emt 0:00:00]} 27. Rxd6 {[%emt 0:01:50]} a5 {[%emt 0:00:00]} 28. Rc6 {[%emt 0:14:32]} a4 {[%emt 0:00:00]} 29. bxa4 {[%emt 0:00:36]} bxa4 {[%emt 0:00:00]} 30. Ne3 {[%emt 0:00:34]} a3 {[%emt 0:00:00] ...a2 is the strong threat.} 31. Rc2 {[%emt 0:00:11]} Bb8 {[%emt 0:00:00]} 32. Ra2 {[%emt 0:00:23]} Bd6 {[%emt 0:00:00]} 33. Nd2 {[%emt 0:03:38]} Na4 {[%emt 0:03:21] aiming for ...Nc3.} 34. Ne4 {[%emt 0:01:44][%csl LRd6,LRf6] Prevents Nc3.} Bf8 {[%emt 0:02:46]} 35. d5 {[%emt 0:08:00]} ({White should play} 35. Nxf6+ $11 Kg7 36. Nfd5) 35... Nc5 $15 {[%emt 0:01:30]} 36. Nc3 {[%emt 0:03:29]} Nd3 {[%emt 0:03:15]} 37. Rd2 $1 {[%emt 0:00:47]} Nb4 {[%emt 0:00:06]} 38. Na2 $2 {[%emt 0:01:13] [#] White does not recover from this.} (38. d6 $11 {and White is okay.}) 38... Nxa2 $1 $19 {[%emt 0:00:53]} 39. Rxa2 {[%emt 0:00:06][%mdl 4096] Endgame [#] KRB-KRN} Rb8 $1 {[%emt 0:00:59] And now ...Rb1+ would win.} 40. Nc4 {[%emt 0:01:21]} Rb4 {[%emt 0:00:36]} 41. Ne3 {[%emt 0:02:06]} (41. Nxa3 Ra4 42. d6 Bxd6 43. Nb5 Bh2+ 44. Kxh2 Rxa2 45. Kg3) 41... Rb2 {[%emt 0:01:24]} 42. Ra1 {[%emt 0:00:13]} a2 {[%emt 0:01:06] ( -> ...Rb1+)} 43. Kh2 $2 {[%emt 0:02:48]} (43. Nd1 Rb1 44. Rxa2 Rxd1+ 45. Kh2) 43... Bd6+ {[%emt 0:00:06] Black is clearly winning.} 44. g3 {[%emt 0:00:00]} Rxf2+ {[%emt 0:00:58]} 45. Kg1 {[%emt 0:00:00]} Re2 {[%emt 0:00:59]} 46. Nc4 {[%emt 0:00:00]} Bc5+ {[%emt 0:00:29]} 47. Kh1 {[%emt 0:00:31]} Rc2 {[%emt 0:00:32] Weighted Error Value: White=0.51/Black=0.13 (very precise)} 0-1

[Event "Charlotte Summer IM B 2022"]
[Site "Charlotte"]
[Date "2022.07.25"]
[Round "1.3"]
[White "Kolay, Alex"]
[Black "Wang, Tianqi"]
[Result "0-1"]
[ECO "D15"]
[WhiteElo "2188"]
[BlackElo "2402"]
[Annotator "TA"]
[PlyCount "74"]
[EventDate "2022.07.24"]
[EventType "tourn"]
[EventCountry "USA"]
[SourceTitle "playchess.com"]
[Source "ChessBase"]
[SourceQuality "1"]
[TimeControl "5400+30"]

{[%evp 12,74,27,28,38,13,27,27,22,22,35,14,16,16,25,23,29,27,31,25,49,29,36,12,10,0,0,-3,0,0,0,0,0,0,0,0,0,-39,-48,-58,-41,-58,0,-10,-17,-39,-39,-407,-414,-390,-311,-319,-70,-66,-68,-65,-14,-21,-23,-5614,-1460,-29987,-29988,-29993,-29994]} 1. d4 {[%emt 0:00:02]} d5 {[%emt 0:00:04]} 2. c4 {[%emt 0:00:10]} c6 {[%emt 0:00:06]} 3. Nf3 {[%emt 0:00:10]} Nf6 {[%emt 0:00:06]} 4. Nc3 {[%emt 0:00:09]} a6 {[%emt 0:00:04]} 5. c5 {[%emt 0:00:54]} Bf5 {[%emt 0:00:04]} 6. Bf4 {[%emt 0:02:53]} Nbd7 {[%emt 1:33:06]} 7. h3 {[%emt 0:03:50]} e6 {[%emt 0:00:00] D15: Slav Defence: 4 Nc3 a6 and gambit lines after 4 Nc3 dxc4.} 8. Qb3 {[%emt 0:10:39]} Ra7 {[%emt 0:00:00]} 9. e3 {[%emt 0:01:57]} h6 {[%emt 0:00:00] White has an edge.} 10. Be2 {[%emt 0:02:18]} Be7 {[%emt 0:00:00]} 11. Bh2 {[%emt 0:03:40]} O-O {[%emt 0:00:00]} 12. O-O {[%emt 0:02:41]} Ne4 {[%emt 0:00:00]} 13. Rac1 {[%emt 0:42:24] [#]} Re8 $146 {[%emt 0:00:00]} ({Predecessor:} 13... Bf6 14. Nxe4 Bxe4 15. Nd2 Bg6 16. Bd3 Bxd3 17. Qxd3 e5 18. b4 Re8 19. Nb3 Qc8 {1-0 (49) Daneshvar,B (2380)-Randil,L (1927) Tornelo 2021}) 14. Na4 {[%emt 0:06:47]} a5 {[%emt 0:00:00]} 15. Bd3 {[%emt 0:09:10]} Ng5 {[%emt 0:00:00] White must now prevent ...Nxf3+.} 16. Nxg5 {[%emt 0:04:49]} hxg5 {[%emt 0:00:00]} 17. f3 {[%emt 0:01:27]} Bf6 {[%emt 0:00:00]} 18. Bxf5 {[%emt 0:01:59]} exf5 {[%emt 0:00:00]} 19. Rcd1 {[%emt 0:00:07]} g6 {[%emt 0:00:00]} 20. Rfe1 {[%emt 0:00:11]} g4 {[%emt 0:00:00]} 21. hxg4 {[%emt 0:01:36]} fxg4 {[%emt 0:00:00]} 22. e4 {[%emt 0:00:29]} gxf3 {[%emt 0:00:00]} 23. gxf3 {[%emt 0:00:20]} Bg7 {[%emt 0:00:00]} 24. Nc3 {[%emt 0:01:49]} b6 {[%emt 0:00:00]} 25. cxb6 {[%emt 0:00:38]} Nxb6 {[%emt 0:09:30]} 26. e5 {[%emt 0:01:01]} Nd7 {[%emt 0:00:30]} (26... a4 $15 27. Qc2 Nc4) 27. Qc2 {[%emt 0:00:36]} Nf8 {[%emt 0:00:00]} 28. Na4 {[%emt 0:00:21]} Ne6 {[%emt 0:01:00]} 29. Qxc6 $2 {[%emt 0:01:53][%mdl 8192]} (29. Nc5 $15) 29... Rc7 $19 {[%emt 0:00:00]} 30. Qb5 {[%emt 0:00:30]} Rc2 {[%emt 0:01:00] ( -> ...Qg5+)} 31. Re2 {[%emt 0:00:30]} Qg5+ $2 {[%emt 0:00:00]} (31... Rc4 $19 32. Nc3 (32. Red2 $2 Bh6 $19) 32... Nxd4 33. Rxd4 Rxd4) 32. Kh1 $15 {[%emt 0:00:30]} Rec8 {[%emt 0:00:00][%cal Be8c8,Bc8c3,Bc3f3,Bf3f2][%mdl 32]} 33. Nc3 {[#]} Nxd4 {[%emt 0:01:30]} 34. Rxd4 $11 {[%emt 0:00:14]} R8xc3 $40 {[%emt 0:00:00][%mdl 128] Black mounts an attack. Really sharp!} 35. Rd1 {[%emt 0:00:35][%mdl 8192] [#]} (35. Rg4 $11 Qc1+ 36. Rg1 Rxe2 37. Qxe2) 35... Qf5 $1 {[%emt 0:00:00]} 36. Rf1 {[%emt 0:00:39]} (36. f4 Qh5) 36... Rxf3 {[%emt 0:00:00]} 37. Rg1 {[%emt 0:00:27]} Rf2 {[%emt 0:00:00] Weighted Error Value: White=0.69/Black=0.47} 0-1

[Event "Charlotte Summer IM B 2022"]
[Site "Charlotte"]
[Date "2022.07.25"]
[Round "1.4"]
[White "Atanasov, Anthony"]
[Black "Avila Rodriguez, Joshua Ad"]
[Result "0-1"]
[ECO "B90"]
[WhiteElo "2172"]
[BlackElo "2210"]
[Annotator "TA"]
[PlyCount "66"]
[EventDate "2022.07.24"]
[EventType "tourn"]
[EventCountry "USA"]
[SourceTitle "playchess.com"]
[Source "ChessBase"]
[SourceQuality "1"]
[TimeControl "5400+30"]

{[%evp 10,65,30,22,18,27,14,12,10,-19,5,0,0,0,0,-8,0,-26,-17,-16,-39,-27,2,-33,-11,-17,-17,-19,-11,-43,-51,-138,-125,-462,-467,-462,-470,-791,-787,-850,-844,-1389,-1389,-1381,-1352,-1727,-1714,-29989,-29986,-29992,-29981,-29989,-29990,-29997,-29998,-29998,-29999,-29999]} 1. e4 {[%emt 0:00:02]} c5 {[%emt 0:00:24]} 2. Nf3 {[%emt 0:00:05]} d6 {[%emt 0:00:08]} 3. d4 {[%emt 0:00:15]} cxd4 {[%emt 0:00:10]} 4. Nxd4 {[%emt 0:00:08]} Nf6 {[%emt 0:00:10]} 5. Nc3 {[%emt 0:00:05]} a6 {[%emt 0:00:27]} 6. Nb3 {[%emt 0:00:20]} e6 {[%emt 0:01:33] B90: Sicilian Najdorf: Unusual White 6th moves, 6 Be3 Ng4 and 6 Be3 e5.} 7. g4 {[%emt 0:00:17][%cal Bg2g4,Bg4g5][%mdl 32]} b5 {[%emt 0:01:20]} 8. Bg2 {[%emt 0:00:16][%cal Oe4e5]} Bb7 {[%emt 0:00:14] The position is equal.} 9. g5 {[%emt 0:00:19]} Nfd7 {[%emt 0:01:09]} (9... b4 $5 {[%cal Rb4c3]}) 10. h4 {[%emt 0:00:33]} b4 {[%emt 0:03:39]} 11. Ne2 {[%emt 0:00:55]} Nc6 {[%emt 0:00:11]} 12. f4 {[%emt 0:06:07]} h6 {[%emt 0:20:48]} 13. Be3 {[%emt 0:14:55]} hxg5 {[%emt 0:00:21]} 14. hxg5 {[%emt 0:00:12]} Rxh1+ {[%emt 0:00:09]} 15. Bxh1 {[%emt 0:00:06] [#]} Qc7 $146 {[%emt 0:07:36]} ({Predecessor:} 15... a5 16. Ned4 Nxd4 17. Nxd4 Nc5 18. Qg4 g6 19. O-O-O Qd7 20. e5 Bxh1 21. Rxh1 dxe5 22. fxe5 {0-1 (56) Svidler,P (2723)-Nepomniachtchi,I (2784) chess24.com INT 2020}) 16. Qd3 {[%emt 0:17:57][%cal Og5g6]} Nc5 {[%emt 0:13:48]} 17. Qc4 {[%emt 0:17:00]} a5 {[%emt 0:04:30][%cal Ba6a5,Ba5a4][%mdl 32] White must now prevent ...Ba6.} 18. Nxc5 {[%emt 0:03:36]} ({Don't blunder} 18. Bxc5 $2 Ba6 19. Qxa6 (19. Bxd6 $2 Bxd6 20. Qxa6 Rxa6 $19) 19... Rxa6 $19) 18... dxc5 {[%emt 0:00:34]} 19. c3 {[%emt 0:07:48]} (19. Bxc5 $2 Ba6 20. Qb3 Bxc5 $19) (19. g6 $5 {[%cal Rg6f7]}) 19... a4 {[%emt 0:09:38]} 20. cxb4 {[%emt 0:00:44]} ({But not} 20. Bxc5 $2 Ba6 21. Qxa6 Rxa6 $19) (20. e5 $1 $15) 20... Nxb4 $17 {[%emt 0:00:18] Threatens to win with ...a3.} 21. a3 $2 {[%emt 0:14:16][%mdl 8192] Now White is beyond hope.} (21. Qc3 $17 {is tougher.}) 21... Ba6 $19 {[%emt 0:00:13]} 22. Qc3 {[%emt 0:00:04]} Nd3+ {[%emt 0:03:04]} 23. Kd2 {[%emt 0:01:37]} (23. Kf1 $142 Nxf4 24. Bf3) 23... Rb8 {[%emt 0:01:35][%cal Ba8b8,Bb8b5,Bb5b3][%mdl 32]} 24. b4 {[%emt 0:04:46]} Qd7 {[%emt 0:08:47][%cal Rc5b4]} 25. b5 {[%emt 0:01:58] [#]} Rxb5 $1 {[%emt 0:00:32]} 26. Kd1 {[%emt 0:02:40]} Rb3 {[%emt 0:02:48]} 27. Qd2 {[%emt 0:00:53]} Rb2 {[%emt 0:00:16]} 28. Qa5 {[%emt 0:00:59]} Nxf4+ {[%emt 0:01:10] Black mates.} 29. Kc1 {[%emt 0:00:14]} Nd3+ {[%emt 0:05:01]} 30. Kd1 {[%emt 0:00:04]} Nb4+ {[%emt 0:00:17]} 31. Kc1 {[%emt 0:00:40] [#]} Qd1+ $3 {[%emt 0:00:49][%mdl 512]} 32. Kxd1 {[%emt 0:00:29]} Bxe2+ {[%emt 0:00:05]} 33. Ke1 {[%emt 0:00:06]} Nd3# {[%emt 0:00:38] Weighted Error Value: White=1.00/Black=0.04 (flawless)} 0-1

[Event "Charlotte Summer IM B 2022"]
[Site "Charlotte"]
[Date "2022.07.25"]
[Round "1.5"]
[White "Adu, Oladapo"]
[Black "Ringoir, Tanguy"]
[Result "0-1"]
[ECO "A23"]
[WhiteElo "2056"]
[BlackElo "2490"]
[Annotator "TA"]
[PlyCount "55"]
[EventDate "2022.07.24"]
[EventType "tourn"]
[EventCountry "USA"]
[SourceTitle "playchess.com"]
[Source "ChessBase"]
[SourceQuality "1"]
[TimeControl "5400+30"]

{[%evp 9,55,17,18,-14,-14,-6,-6,-38,-11,-85,-70,-122,-112,-115,-91,-97,-84,-72,-84,-74,-79,-84,-70,-107,-98,-91,-85,-123,-124,-227,-175,-283,-244,-230,-158,-148,-140,-283,-266,-268,-272,-268,-255,-316,-319,-579,-537,-566]} 1. c4 {[%emt 0:00:29]} e5 {[%emt 0:05:26]} 2. Nc3 {[%emt 0:00:43]} Nf6 {[%emt 0:00:46]} 3. g3 {[%emt 0:00:49]} c6 {[%emt 0:01:35]} 4. d4 {[%emt 0:02:14]} e4 {[%emt 0:02:16]} 5. Bg5 {[%emt 0:00:51]} Bb4 $1 {[%emt 0:00:06] [#]} 6. a3 $146 {[%emt 0:01:57] A23: English Opening: 1...e5 2 Nc3 Nf6 3 g3 c6.} ({Predecessor:} 6. Bg2 d5 7. Qb3 Bxc3+ 8. bxc3 Nbd7 9. Nh3 O-O 10. O-O h6 11. Bxf6 Nxf6 12. cxd5 cxd5 {0-1 (53) Gagunashvili,M (2573)-Paichadze,L (2566) Tbilisi 2022}) 6... Bxc3+ {[%emt 0:00:25]} 7. bxc3 {[%emt 0:00:14]} O-O {[%emt 0:00:49]} 8. c5 {[%emt 0:06:07] The position is equal.} h6 {[%emt 0:02:58]} 9. Bd2 {[%emt 0:05:53]} (9. Bf4 $11 {keeps the balance.}) 9... b6 {[%emt 0:06:08]} 10. cxb6 {[%emt 0:00:29]} (10. Bf4 $15) 10... axb6 $17 {[%emt 0:00:03]} 11. c4 {[%emt 0:01:01]} Ba6 {[%emt 0:14:11]} 12. e3 {[%emt 0:00:29]} c5 {[%emt 0:03:01]} 13. d5 {[%emt 0:08:32]} d6 {[%emt 0:00:02]} 14. Bc3 {[%emt 0:03:17]} Nbd7 {[%emt 0:00:03]} 15. a4 {[%emt 0:01:28]} Qe7 {[%emt 0:00:28]} 16. Be2 {[%emt 0:03:19]} Ne5 {[%emt 0:00:15]} 17. Qb3 {[%emt 0:01:20]} Rfe8 {[%emt 0:09:19]} 18. Rb1 {[%emt 0:02:50]} Bc8 {[%emt 0:00:45] Black is much more active. The white rooks are badly placed.} 19. Qxb6 {[%emt 0:02:36]} (19. Ra1 $17) 19... Rxa4 {[%emt 0:00:12] Threatens to win with ...Nd3+.} 20. Qb3 {[%emt 0:00:16]} (20. Kf1 $142) 20... Qa7 {[%emt 0:14:45]} 21. Kf1 {[%emt 0:02:31] [#]} Nxc4 {[%emt 0:05:02][%mdl 512]} 22. Bxc4 {[%emt 0:04:09]} Rxc4 {[%emt 0:00:03]} 23. Qxc4 {[%emt 0:00:43] Now White is beyond hope.} (23. Kg2 $17 {might work better.} Qa4 24. Bxf6 gxf6 25. Ne2) 23... Ba6 $19 {[%emt 0:00:15][%cal Bc8a6,Ba6b5,Bb5d3][%mdl 32]} 24. Rb5 {[%emt 0:00:02][%cal Of1g2]} Qd7 {[%emt 0:01:10][%mdl 64] Pin} 25. Kg2 {[%emt 0:01:40][%cal Oc3f6]} ({But not} 25. Bxf6 $2 Bxb5 26. Qe2 Bxe2+ $19) 25... Bxb5 {[%emt 0:00:04]} 26. Qb3 {[%emt 0:00:12]} Rb8 {[%emt 0:00:52][%cal Ob5f1] [#] And now ...Bf1+! would win.} 27. Qd1 {[%emt 0:00:14] Inhibits Bf1+.} (27. Qa2 Qf5 28. Bxf6 Qxf6 29. Qb1) 27... Bd3 {[%emt 0:03:30]} 28. Bxf6 {[%emt 0:00:48] Weighted Error Value: White=0.46/Black=0.12 (very precise)} 0-1

[Event "Charlotte Summer IM B 2022"]
[Site "Charlotte"]
[Date "2022.07.25"]
[Round "2.2"]
[White "Avila Rodriguez, Joshua Ad"]
[Black "Adu, Oladapo"]
[Result "1/2-1/2"]
[ECO "B42"]
[WhiteElo "2210"]
[BlackElo "2056"]
[Annotator "TA"]
[PlyCount "49"]
[EventDate "2022.07.24"]
[EventType "tourn"]
[EventCountry "USA"]
[SourceTitle "playchess.com"]
[Source "ChessBase"]
[SourceQuality "1"]
[TimeControl "5400+30"]

{[%evp 16,49,47,41,39,30,27,31,30,27,23,25,30,15,20,12,32,0,0,0,0,0,14,-17,-16,-24,-22,-31,-22,-34,-18,-30,0,-16,0,-55]} 1. e4 {[%emt 0:00:07]} c5 {[%emt 0:04:22]} 2. Nf3 {[%emt 0:00:22]} e6 {[%emt 0:00:10]} 3. d4 {[%emt 0:00:30]} cxd4 {[%emt 0:00:12]} 4. Nxd4 {[%emt 0:00:11]} a6 {[%emt 0:00:10]} 5. Bd3 {[%emt 0:00:50]} Bc5 {[%emt 0:00:14]} 6. Nb3 {[%emt 0:00:09]} Ba7 {[%emt 0:00:08]} 7. Qe2 {[%emt 0:00:59]} Ne7 {[%emt 0:00:11]} 8. Be3 {[%emt 0:01:04]} Nbc6 {[%emt 0:00:14]} 9. Nc3 {[%emt 0:00:25]} b5 {[%emt 0:00:22] was the old line (9...0-0). B42: Sicilian: Kan Variation: 5 Bd3.} 10. Bxa7 {[%emt 0:05:31]} Rxa7 {[%emt 0:00:17]} 11. a4 $1 {[%emt 0:01:02]} b4 {[%emt 0:00:34] [#] White is slightly better.} 12. Nd5 $146 {[%emt 0:00:10]} ({Predecessor:} 12. Nd1 d5 13. O-O dxe4 14. Bxe4 Nd4 15. Qc4 Nxb3 16. cxb3 a5 17. Qb5+ Bd7 18. Qc5 {0-1 (59) Anand,V (2801)-Kamsky,G (2714) Moscow 2007}) 12... O-O {[%emt 0:01:14]} 13. Nxe7+ {[%emt 0:00:20]} Qxe7 {[%emt 0:00:42]} 14. O-O {[%emt 0:03:47]} Ne5 {[%emt 0:04:27]} 15. Rac1 {[%emt 0:11:55]} d6 {[%emt 0:10:26]} 16. f4 {[%emt 0:11:15]} Nxd3 {[%emt 0:00:22]} 17. cxd3 {[%emt 0:00:05]} Bd7 {[%emt 0:01:32]} 18. a5 {[%emt 0:06:24]} Qd8 {[%emt 0:00:46]} 19. Kh1 {[%emt 0:14:56]} Ba4 {[%emt 0:04:49]} 20. Nd2 {[%emt 0:03:55]} Bb5 {[%emt 0:04:58]} 21. Qe3 {[%emt 0:05:11]} Rc7 {[%emt 0:00:56]} 22. Nb3 {[%emt 0:09:30]} Ba4 {[%emt 0:03:12]} 23. Nd2 {[%emt 0:05:37]} Bb5 {[%emt 0:00:21]} 24. Nb3 {[%emt 0:00:14]} Ba4 {[%emt 0:00:15]} 25. Nd2 {[%emt 0:00:08] Weighted Error Value: White=0.08 (flawless) /Black=0.06 (flawless)} 1/2-1/2